[Event "SUI-ch Bundesturnier TP-1 2022"]
[Site "Payerne"]
[Date "2022.05.27"]
[Round "3.5"]
[White "Pomini, Aurelien"]
[Black "Mamalis, Prokopios"]
[Result "1/2-1/2"]
[ECO "B45"]
[WhiteElo "2216"]
[BlackElo "2067"]
[Annotator "TA"]
[PlyCount "105"]
[EventDate "2022.05.26"]
[EventType "swiss"]
[EventCountry "SUI"]
[SourceTitle "playchess.com"]
[Source "ChessBase"]
[SourceQuality "1"]
[TimeControl "5400+30"]

{[%evp 11,105,21,29,29,26,27,23,31,32,30,50,4,11,17,74,48,73,80,98,69,75,84,106,50,95,78,87,38,47,21,84,102,82,76,282,208,449,440,367,93,110,108,102,35,36,31,46,29,40,27,42,0,1,1,74,0,0,0,0,0,0,0,0,0,0,0,0,0,0,0,0,0,0,0,0,0,0,0,0,0,0,0,0,0,0,0,0,0,0,0,0,0,0,0,0,0]} 1. e4 {[%emt 0:00:04]} c5 {[%emt 0:01:53]} 2. Nf3 {[%emt 0:00:08]} Nc6 {[%emt 0:00:05]} 3. d4 {[%emt 0:00:20]} cxd4 {[%emt 0:00:08]} 4. Nxd4 {[%emt 0:00:04][%cal Bf3d4,Bd4b5,Bb5d6,Bd6f5,Bf5e3,Be3c4,Bc4d2][%mdl 32]} Nf6 {[%emt 0:00:02]} 5. Nc3 {[%emt 0:00:08]} e6 {[%emt 0:00:07]} 6. Ndb5 {[%emt 0:01:11]} Bc5 {[%emt 0:00:38]} 7. Nd6+ {[%emt 0:03:59] B45: Sicilian Four Knights.} Ke7 $1 {[%emt 0:01:01]} 8. Bf4 {[%emt 0:04:51]} e5 {[%emt 0:00:25]} 9. Nf5+ {[%emt 0:03:55] White has an edge.} Kf8 {[%emt 0:00:23]} 10. Bg5 {[%emt 0:05:54]} Bb4 {[%emt 0:00:05]} 11. Bc4 {[%emt 0:14:04] Inhibits d5.} (11. Ne3 $14 {was preferrable.}) 11... d5 $1 $11 {[%emt 0:02:07]} 12. exd5 {[%emt 0:13:35] [#]} Na5 $146 {[%emt 0:10:45]} (12... Bxf5 $11 13. dxc6 Qxd1+ 14. Rxd1 bxc6) ({Predecessor:} 12... Bxf5 13. dxc6 Qxd1+ 14. Rxd1 bxc6 15. Bd3 Bxd3 16. cxd3 Nd5 17. Bd2 Rb8 18. O-O Nxc3 19. Bxc3 Bxc3 20. bxc3 {½-½ (35) Zawadzka,J (2402)-Raetsky,A (2453) Lausanne 2005}) 13. Bxf6 $16 {[%emt 0:12:39] White is more active.} Qxf6 {[%emt 0:20:31]} 14. Ne3 {[%emt 0:01:14]} Nxc4 {[%emt 0:00:11]} 15. Nxc4 {[%emt 0:00:05] Hoping for 0-0.} Bd7 {[%emt 0:00:19]} 16. Nd2 {[%emt 0:08:19]} Qa6 {[%emt 0:04:42]} 17. Ne2 {[%emt 0:10:06]} ({Better is} 17. a3 $16 Ba5 18. Ne2) 17... Bg4 {[%emt 0:06:29]} 18. f3 {[%emt 0:07:49]} Bf5 {[%emt 0:00:42]} 19. O-O {[%emt 0:03:36]} (19. Ng3 $16 Bg6 20. c3) 19... Rd8 $14 {[%emt 0:05:46]} ({But not} 19... Bxc2 20. Qxc2 Qxe2 21. Rf2 $16) 20. c4 {[%emt 0:02:39]} Bxd2 {[%emt 0:01:28]} (20... Bd3 $11 {keeps the balance.}) 21. Qxd2 $16 {[%emt 0:00:01] Black must now prevent Qc3.} Qxc4 {[%emt 0:00:02]} 22. Rfd1 {[%emt 0:01:08]} Rd6 $2 {[%emt 0:05:40]} (22... Qb5 $16 {might work better.}) 23. Rac1 {[%emt 0:00:50]} Qa6 {[%emt 0:04:05]} (23... Qb5 24. f4 Bg4) 24. Ng3 $18 {[%emt 0:01:15]} Qb6+ {[%emt 0:03:26]} 25. Qf2 $2 {[%emt 0:01:38]} (25. Kh1 $18 Be6 26. Qe2) 25... g6 {[%emt 0:00:10]} 26. Qxb6 {[%emt 0:00:38]} axb6 {[%emt 0:00:07] [#]} 27. Nxf5 {[%emt 0:00:58]} ({White should try} 27. f4 $1 $16 exf4 28. Nxf5 gxf5 29. Rc8+ Kg7 30. Rxh8 Kxh8 31. Kf2) 27... gxf5 $16 {[%emt 0:00:03][%mdl 4096] Endgame KRR-KRR} 28. Rc7 {[%emt 0:00:36]} Kg7 {[%emt 0:00:07]} 29. Rxb7 {[%emt 0:00:28]} Rc8 {[%emt 0:00:10]} 30. Rd2 {[%emt 0:00:10]} Rc5 {[%emt 0:00:29]} 31. Kf2 {[%emt 0:00:20]} b5 {[%emt 0:00:10]} 32. Ke3 {[%emt 0:00:55]} Kf6 {[%emt 0:01:21] [#]} (32... Rdxd5 $11 {remains equal.} 33. Rxd5 Rxd5) 33. a3 {[%emt 0:01:53]} (33. g4 $1 $16) 33... f4+ $11 {[%emt 0:01:04] The position is equal.} 34. Ke2 {[%emt 0:00:18]} Rdxd5 {[%emt 0:00:52]} 35. Rxd5 {[%emt 0:00:05]} Rxd5 {[%emt 0:00:07] KR-KR} 36. Rc7 {[%emt 0:00:27]} h5 {[%emt 0:02:12]} 37. g3 {[%emt 0:00:56]} fxg3 {[%emt 0:01:03]} 38. hxg3 {[%emt 0:00:02]} Kg6 {[%emt 0:00:47]} 39. b4 {[%emt 0:01:54]} f5 {[%emt 0:01:14]} 40. Ke3 {[%emt 0:00:32]} Kg5 {[%emt 0:01:40]} 41. Rc6 {[%emt 0:00:36]} Rd1 {[%emt 0:07:08]} 42. Rc5 {[%emt 0:00:33][%csl LRb5,LRe5]} Ra1 {[%emt 0:00:06]} 43. Rxe5 {[%emt 0:00:17]} Rxa3+ {[%emt 0:00:07]} 44. Kf2 {[%emt 0:00:22]} Ra2+ {[%emt 0:00:09]} 45. Kf1 {[%emt 0:00:09]} Rb2 {[%emt 0:01:34]} 46. Rxb5 {[%emt 0:00:01]} h4 {[%emt 0:00:51]} 47. gxh4+ {[%emt 0:01:18]} Kxh4 {[%emt 0:00:32]} 48. Rxf5 {[%emt 0:00:27] And now b5 would win.} Rxb4 {[%emt 0:00:03]} 49. Re5 {[%emt 0:00:54]} Kg3 {[%emt 0:01:09]} 50. Re3 {[%emt 0:00:21]} Rb1+ {[%emt 0:01:12]} 51. Ke2 {[%emt 0:00:05]} Rb2+ {[%emt 0:00:37]} 52. Kd3 {[%emt 0:00:07]} Kf4 {[%emt 0:00:08] Strongly threatening ...Rb3+.} 53. Re4+ {[%emt 0:00:20] Black escapes into a draw.  Weighted Error Value: White=0.26 (precise) /Black=0.27 (precise)} 1/2-1/2

[Event "SUI-ch Bundesturnier TP-1 2022"]
[Site "Payerne"]
[Date "2022.05.27"]
[Round "3.6"]
[White "Hagner, Bennet"]
[Black "Collin, Moritz Valentin"]
[Result "0-1"]
[ECO "B12"]
[WhiteElo "2186"]
[BlackElo "2052"]
[Annotator "TA"]
[PlyCount "120"]
[EventDate "2022.05.26"]
[EventType "swiss"]
[EventCountry "SUI"]
[SourceTitle "playchess.com"]
[Source "ChessBase"]
[SourceQuality "1"]
[TimeControl "5400+30"]

{[%evp 10,120,36,22,38,30,33,23,35,37,51,53,64,25,24,20,25,0,0,-5,5,0,30,30,32,0,24,-10,10,-10,0,0,17,0,0,5,0,0,0,-4,0,8,18,24,26,8,12,33,154,148,360,-47,-54,-62,-21,-18,-28,-114,-117,-125,-25,-98,-98,-97,-95,-179,-180,-195,-180,-178,-180,-177,-145,-142,-142,-240,-240,-259,-255,-259,-258,-270,-266,-263,-181,-272,-272,-278,-260,-244,-244,-267,-241,-556,-568,-643,-622,-633,-632,-944,-914,-1151,-1124,-7113,-5945,-1964,-1045,-963,-895,-1373,-1363,-1293,-1242]} 1. e4 {[%emt 0:00:03]} c6 {[%emt 0:01:59]} 2. d4 {[%emt 0:00:05]} d5 {[%emt 0:00:04]} 3. e5 {[%emt 0:00:06]} Bf5 {[%emt 0:00:04]} 4. Nf3 {[%emt 0:00:06]} e6 {[%emt 0:00:05]} 5. Be2 {[%emt 0:00:06]} Ne7 {[%emt 0:00:04]} 6. O-O {[%emt 0:00:11]} Ng6 {[%emt 0:00:24] B12: Caro-Kann: Advance Variation.} 7. a4 {[%emt 0:00:10]} c5 {[%emt 0:00:09] [#]} 8. Be3 $146 {[%emt 0:01:49]} ({Predecessor:} 8. c3 Nc6 9. Be3 Be7 10. dxc5 Ngxe5 11. Nd4 Nxd4 12. cxd4 Nc6 13. Nc3 O-O 14. f4 {0-1 (38) Srija,S (2166)-Sargissian,G (2666) Dubai 2017}) 8... Nc6 {[%emt 0:00:28] White has an edge.} 9. dxc5 {[%emt 0:07:28]} Ngxe5 {[%emt 0:00:33]} 10. Nxe5 {[%emt 0:01:24]} Nxe5 {[%emt 0:00:36]} 11. Na3 {[%emt 0:12:23]} (11. g4 {is more complex.} Be4 12. Nd2 h5 13. Bb5+) 11... Nc6 {[%emt 0:19:58]} 12. c3 {[%emt 0:10:55] Inhibits d4.} Be7 {[%emt 0:10:03]} 13. f4 {[%emt 0:01:57]} O-O {[%emt 0:05:28]} 14. Qd2 {[%emt 0:19:56]} Na5 {[%emt 0:08:49] Strongly threatening ...Nb3.} 15. Qd1 {[%emt 0:03:42] Against Nb3} Qc8 {[%emt 0:08:59]} 16. b4 {[%emt 0:01:37]} Nc6 {[%emt 0:00:17]} 17. Nc2 {[%emt 0:10:39]} a5 {[%emt 0:02:35]} 18. Nd4 {[%emt 0:03:15]} (18. b5 Nb8 $15) 18... Rd8 {[%emt 0:14:49]} 19. Bb5 {[%emt 0:07:27]} (19. Nxf5 exf5 20. Rc1 axb4 21. cxb4 Nxb4 $17) 19... Be4 {[%emt 0:05:02]} 20. Qd2 {[%emt 0:07:25]} f6 {[%emt 0:07:11]} 21. Nxc6 {[%emt 0:00:51]} bxc6 {[%emt 0:00:11]} 22. Bd3 {[%emt 0:01:33]} Bxd3 {[%emt 0:01:12]} 23. Qxd3 {[%emt 0:00:02]} e5 {[%emt 0:00:37]} 24. Rfb1 {[%emt 0:01:12]} Kh8 {[%emt 0:01:40]} (24... Rb8 {keeps more tension.} 25. fxe5 fxe5 26. b5 cxb5 27. Rxb5 Rxb5 28. Qxb5 d4) 25. b5 {[%emt 0:01:32]} d4 {[%emt 0:06:11]} 26. cxd4 {[%emt 0:00:05]} exd4 {[%emt 0:00:10]} 27. Bd2 {[%emt 0:02:00]} Bxc5 {[%emt 0:01:20]} 28. Rc1 {[%emt 0:00:32]} cxb5 {[%emt 0:02:20]} ({Black should try} 28... Rd5 $14) 29. axb5 $16 {[%emt 0:00:47] aiming for b6.} Qc7 {[%emt 0:00:54]} (29... Rd5 $16 {might work better.}) 30. Qc4 $2 {[%emt 0:01:30]} (30. Qf5 $1 $18 {[%cal Rf5c5]}) 30... Rdc8 $36 {[%emt 0:00:31][%mdl 2048] Black is more active.} 31. Qe6 {[%emt 0:02:41][%cal Oa1a5] Inhibits Qd7.} Qb6 {[%emt 0:01:22]} (31... d3+ {seems wilder.} 32. Kh1 Qd6 33. Qxd6 Bxd6 34. b6 Rxc1+ 35. Rxc1 Kg8) 32. Qxb6 {[%emt 0:00:54]} Bxb6 {[%emt 0:00:07]} 33. Rc6 {[%emt 0:01:06]} (33. Rxc8+ $11 {keeps the balance.} Rxc8 34. Kf1 (34. Bxa5 $2 Ra8 $19)) 33... Rxc6 $17 {[%emt 0:01:58]} 34. bxc6 {[%emt 0:00:02][%mdl 4096] Endgame KRB-KRB} Rc8 {[%emt 0:00:34]} ({Black should play} 34... Kg8 $17 {Threatens to win with ...a4.} 35. Kf2 a4) 35. Rc1 {[%emt 0:01:14]} (35. Bxa5 $2 Ra8 36. Bxb6 Rxa1+ 37. Kf2 Rc1 $19) (35. Rb1 $11 Bd8 36. Kf2) 35... Kg8 {[%emt 0:00:31]} 36. Kf1 {[%emt 0:00:33]} Kf7 {[%emt 0:00:21]} 37. Ke2 {[%emt 0:00:08]} (37. f5 $17) 37... Ke6 $19 {[%emt 0:00:28]} 38. Kd3 {[%emt 0:00:06]} Kd5 {[%emt 0:00:26]} 39. Ra1 {[%emt 0:01:30] [#]} Ra8 {[%emt 0:00:50]} (39... Rxc6 40. Bxa5 Bc5 41. Bd2 $17) 40. Rc1 {[%emt 0:00:31]} f5 {[%emt 0:00:28]} 41. c7 {[%emt 0:00:37]} Rc8 {[%emt 0:00:15]} 42. Rb1 {[%emt 0:00:20]} (42. Re1 $17) 42... Kc6 {[%emt 0:00:37]} (42... Bxc7 43. Rc1 $17) 43. Ra1 {[%emt 0:00:21] [#]} Kb5 {[%emt 0:00:34]} (43... Rxc7 44. Bxa5 Rd7 45. Rc1+ Kb5 46. Bxb6 Kxb6 47. Rc4 $11) (43... Bxc7 44. g3 $17) 44. Rc1 {[%emt 0:00:39]} (44. Rb1+ Ka6 45. Rh1 Rxc7 $19) 44... g6 {[%emt 0:00:31]} ({And not} 44... Bxc7 45. g3 $17) 45. g3 {[%emt 0:00:31]} ({Much weaker is} 45. Rb1+ Ka6 46. g3 Rxc7 $19) 45... Ka6 {[%emt 0:00:32]} (45... Bxc7 46. Rc4 $17) 46. Be1 {[%emt 0:00:36]} Kb7 {[%emt 0:00:31]} ({Stronger than} 46... Bxc7 47. Bf2 $17) 47. Rb1 {[%emt 0:00:48]} (47. Ra1 $142) 47... Kxc7 {[%emt 0:00:17]} 48. Rc1+ {[%emt 0:00:32]} Kd7 {[%emt 0:00:34]} 49. Rb1 {[%emt 0:00:25]} Kc6 {[%emt 0:00:19]} 50. Bf2 {[%emt 0:00:35]} Rd8 {[%emt 0:00:57]} 51. Kc4 $2 {[%emt 0:00:04]} (51. Ra1 {is a better chance.}) 51... a4 {[%emt 0:00:30][%cal Ba5a4,Ba4a3][%mdl 32] Black is clearly winning.} 52. Be1 {[%emt 0:00:55]} a3 {[%emt 0:00:22]} 53. Kb3 {[%emt 0:00:12]} Bc5 {[%emt 0:00:17]} 54. Ka2 {[%emt 0:00:49]} Rd7 {[%emt 0:00:31]} 55. Rc1 {[%emt 0:00:32]} Kd5 {[%emt 0:00:21]} 56. Bd2 {[%emt 0:00:19]} Rb7 {[%emt 0:00:24]} 57. Rd1 {[%emt 0:00:25]} Ke4 {[%emt 0:00:38]} 58. Bc1 {[%emt 0:00:16] Inhibits Rb2+.} d3 {[%emt 0:00:21] Hoping for ...Kd4.} 59. Re1+ {[%emt 0:00:22]} Kf3 {[%emt 0:00:39][%cal Od3d2] ( -> ...d2!)} 60. Rd1 {[%emt 0:00:40]} Rd7 {[%emt 0:00:34] Never resign too early!  Weighted Error Value: White=0.62/Black=0.20 (precise)} 0-1

[Event "SUI-ch Bundesturnier TP-1 2022"]
[Site "Payerne"]
[Date "2022.05.27"]
[Round "3.7"]
[White "Asllani, Dorian"]
[Black "Willems, Niels"]
[Result "1/2-1/2"]
[ECO "E32"]
[WhiteElo "2116"]
[BlackElo "2338"]
[Annotator "TA"]
[PlyCount "99"]
[EventDate "2022.05.26"]
[EventType "swiss"]
[EventCountry "SUI"]
[SourceTitle "playchess.com"]
[Source "ChessBase"]
[SourceQuality "1"]
[TimeControl "5400+30"]

{[%evp 13,99,0,0,0,0,8,0,0,0,0,0,0,0,-17,0,0,0,0,0,0,0,0,0,0,0,0,0,0,0,0,189,189,188,189,189,185,188,170,188,183,258,258,258,242,250,242,417,405,459,469,497,496,459,448,422,422,12835,12835,12825,623,589,571,457,263,261,188,195,220,205,212,247,237,271,71,76,58,52,0,0,0,0,0,0,0,0,0,0,0]} 1. d4 {[%emt 0:11:22]} Nf6 {[%emt 0:00:14]} 2. c4 {[%emt 0:00:13]} e6 {[%emt 0:00:13]} 3. Nc3 {[%emt 0:00:09]} Bb4 {[%emt 0:00:08]} 4. Qc2 {[%emt 0:00:13]} O-O {[%emt 0:00:09]} 5. e4 {[%emt 0:00:18]} d5 {[%emt 0:00:10]} 6. e5 {[%emt 0:00:12]} Ne4 {[%emt 0:00:08]} 7. Bd3 {[%emt 0:00:15]} c5 {[%emt 0:00:17]} 8. Nf3 {[%emt 0:00:10] E32: Nimzo-Indian: Classical (4 Qc2): 4...0-0.} cxd4 {[%emt 0:00:11]} 9. Nxd4 {[%emt 0:00:09]} Nd7 $1 {[%emt 0:00:09]} 10. Bf4 {[%emt 0:00:13]} Qh4 {[%emt 0:00:13]} 11. g3 {[%emt 0:00:25]} Qh5 {[%emt 0:00:09]} 12. O-O {[%emt 0:00:20]} g5 {[%emt 0:00:18]} 13. cxd5 {[%emt 0:00:24]} Bxc3 {[%emt 0:00:24]} (13... gxf4 {keeps more tension.} 14. dxe6 Nxe5 15. Nxe4 fxe6 16. gxf4 Ng4) 14. bxc3 {[%emt 0:00:15][%cal Od5e6]} exd5 {[%emt 0:00:25]} 15. e6 {[%emt 0:00:34]} gxf4 {[%emt 0:00:46]} (15... Ndc5 {feels hotter.} 16. Be2 Qg6 17. Be3 Nxe6 18. Rad1 Re8) 16. exd7 {[%emt 0:00:14]} Bxd7 {[%emt 0:00:06]} 17. Bxe4 {[%emt 0:00:16]} dxe4 {[%emt 0:00:06]} 18. Qxe4 {[%emt 0:00:20]} fxg3 {[%emt 0:00:12]} 19. hxg3 {[%emt 0:02:20]} b6 {[%emt 0:00:35]} 20. Rfe1 {[%emt 0:03:02]} Rad8 {[%emt 0:11:04] [#]} 21. Nc6 $146 {[%emt 0:22:43]} ({Predecessor:} 21. Qb7 Bg4 22. Re7 Rxd4 23. cxd4 Bf3 24. Qxf3 Qxf3 25. Rae1 Qa3 26. Rd7 Qxa2 27. d5 {0-1 (37) Holt,C (2549)-Martinez Alcantara,J (2620) Chess.com INT 2021}) 21... Rde8 {[%emt 0:33:42]} (21... Bxc6 $11 {and Black has nothing to worry.} 22. Qxc6 Rd2) 22. Ne7+ $1 $18 {[%emt 0:10:26]} Rxe7 {[%emt 0:00:26]} 23. Qxe7 {[%emt 0:00:08]} Bc6 {[%emt 0:00:06][%csl Gc6][%cal Rh5h1]} 24. Qh4 {[%emt 0:03:48] Inhibits Qh1+.} Qf3 {[%emt 0:01:01][%csl Gc6][%cal Rf3g2]} 25. Qh3 {[%emt 0:00:17] Inhibits Qg2+.} Rd8 {[%emt 0:01:12]} 26. Re3 {[%emt 0:00:21]} Rd1+ {[%emt 0:01:48]} (26... Qd5 $142 27. Qg4+ Kh8 28. Qd4+ Qxd4 29. cxd4 Rxd4) 27. Rxd1 {[%emt 0:00:18]} Qxd1+ {[%emt 0:00:01][%mdl 4096] Endgame KQR-KQB} 28. Qf1 {[%emt 0:00:08]} Qd5 {[%emt 0:00:33][%csl Gc6][%cal Rd5h1] [#]} 29. f3 $1 {[%emt 0:03:48]} h5 $2 {[%emt 0:10:51]} (29... Qxa2 30. Qd3 h6) 30. Qd3 {[%emt 0:14:07]} Qg5 {[%emt 0:02:01]} 31. Kf2 {[%emt 0:00:34]} Qa5 {[%emt 0:07:20]} 32. Re2 {[%emt 0:08:10]} Qc5+ {[%emt 0:04:35]} 33. Qe3 {[%emt 0:02:10]} Qf5 {[%emt 0:01:01]} 34. Rd2 {[%emt 0:01:00]} Qh3 {[%emt 0:01:36]} (34... Bd5 $142 35. a3 Be6) 35. Rd8+ {[%emt 0:02:13]} Kh7 {[%emt 0:00:20]} 36. Qd3+ {[%emt 0:00:04]} (36. Qe5 $142 Qh2+ 37. Ke3 Qg1+ 38. Kf4 Qc1+ 39. Kf5 Qb1+ 40. Kg5 Qg6+ 41. Kh4) 36... Kg7 {[%emt 0:00:17]} 37. Qd4+ {[%emt 0:01:38]} f6 {[%emt 0:00:01]} 38. Qd6 {[%emt 0:05:01]} (38. Qc4 Qh2+ 39. Ke3 Qg1+ 40. Kd2 Qf2+ 41. Qe2 Qc5 $18) (38. Rd6 $142 Qh2+ 39. Ke3 Qg1+ 40. Kf4 Qc1+ 41. Qe3 Qxe3+ 42. Kxe3) 38... Qh2+ {[%emt 0:00:16]} 39. Ke3 {[%emt 0:00:06] White threatens Qe7+ and mate.} Qg1+ {[%emt 0:00:05]} 40. Kf4 {[%emt 0:00:05] Intending Qe7+ and mate.} Qc1+ {[%emt 0:00:29] [#]} 41. Qd2 $1 {[%emt 0:00:05]} (41. Kf5 Qg5+ 42. Ke6 Qe3+ 43. Kf5 Qg5+ 44. Ke6 Qe3+ 45. Kf5 Qg5+ $11) 41... Qa3 {[%emt 0:02:55]} 42. Qe3 {[%emt 0:01:29] aiming for c4.} ({But not} 42. Qd6 Qc1+ 43. Qd2 (43. Kf5 Qg5+ 44. Ke6 Qe3+ 45. Kf5 Qg5+ 46. Ke6 Qe3+ 47. Kf5 Qg5+ $11) 43... Qa3) 42... Kf7 {[%emt 0:08:08] White must now prevent ...Qa5.} 43. g4 $2 {[%emt 0:05:27]} (43. Qd4 $18 {and White stays clearly on top.}) 43... hxg4 $16 {[%emt 0:01:08]} 44. fxg4 {[%emt 0:02:16] And now Rd2 would win. The board is on fire.} Qxa2 {[%emt 0:00:31]} 45. Qd2 {[%emt 0:00:48] Against Qh2+} ({Much weaker is} 45. g5 Qc4+ 46. Kg3 fxg5 $11) (45. Rd2 $1 $14 Qc4+ 46. Kg3) 45... Qb1 $11 {[%emt 0:02:28] The position is equal.} 46. Rd7+ {[%emt 0:01:46]} Bxd7 {[%emt 0:10:06]} 47. Qxd7+ {[%emt 0:00:12]} Kg6 {[%emt 0:00:29]} 48. Qe8+ {[%emt 0:00:08]} Kg7 {[%emt 0:00:09] Threatens to win with ...Qc1+.} 49. Qe7+ {[%emt 0:00:21]} Kg6 {[%emt 0:00:02] Strongly threatening ...Qc1+.} 50. Qe8+ {[%emt 0:00:10] Black defended with fortune.  Weighted Error Value: White=0.35/Black=0.21 (precise)} 1/2-1/2

[Event "SUI-ch Bundesturnier TP-1 2022"]
[Site "Payerne"]
[Date "2022.05.27"]
[Round "3.8"]
[White "Buehler, Michael"]
[Black "Colmenares, Aurelio"]
[Result "0-1"]
[ECO "D73"]
[WhiteElo "2080"]
[BlackElo "2318"]
[Annotator "TA"]
[PlyCount "82"]
[EventDate "2022.05.26"]
[EventType "swiss"]
[EventCountry "SUI"]
[SourceTitle "playchess.com"]
[Source "ChessBase"]
[SourceQuality "1"]
[TimeControl "5400+30"]

{[%evp 12,82,21,12,29,14,33,9,13,9,2,9,7,7,7,2,6,10,10,-37,-38,-48,-57,-60,-56,-79,-50,-74,-82,-74,-50,-50,-44,-44,-13,-13,-12,-11,-7,-10,-9,-10,-10,-11,-9,-6,-6,-7,-14,-9,-7,-16,0,0,0,-11,0,0,0,0,0,-346,-348,-343,-333,-375,-261,-538,-533,-501,-509,-445,-465]} 1. d4 {[%emt 0:00:05]} Nf6 {[%emt 0:00:45]} 2. c4 {[%emt 0:00:04]} g6 {[%emt 0:00:08]} 3. Nf3 {[%emt 0:00:14]} Bg7 {[%emt 0:00:08]} 4. g3 {[%emt 0:00:09]} c6 {[%emt 0:00:34][%cal Bc7c6,Bc6d5][%mdl 32]} 5. Bg2 {[%emt 0:00:19]} d5 {[%emt 0:00:16]} 6. cxd5 {[%emt 0:02:05]} cxd5 {[%emt 0:00:07]} 7. Nc3 {[%emt 0:00:25]} Ne4 {[%emt 0:00:15] D73: Fianchetto Grünfeld: 5 Nf3 .} 8. Ne5 {[%emt 0:06:22]} Nd7 {[%emt 0:05:08]} 9. Nxe4 {[%emt 0:14:09]} ({But not} 9. Bxe4 dxe4 10. Bf4 O-O $11) (9. Nxd7 {is more complex.} Nxc3 10. bxc3 Bxd7 11. Bxd5 Qa5 12. Qb3) 9... dxe4 {[%emt 0:01:53] The position is equal.} 10. Nxd7 {[%emt 0:02:11]} (10. O-O {feels hotter.} O-O 11. Bf4 Nf6 12. e3) 10... Qxd7 {[%emt 0:00:11]} 11. Bxe4 {[%emt 0:00:52]} Qxd4 {[%emt 0:01:56]} 12. Qxd4 {[%emt 0:00:11]} Bxd4 {[%emt 0:00:05]} 13. O-O {[%emt 0:02:46]} Bh3 {[%emt 0:09:40]} 14. Rd1 {[%emt 0:04:37]} O-O-O $1 {[%emt 0:05:15][%cal Od4f2] [#] Threatens to win with ...Bxf2+!} 15. e3 $146 {[%emt 0:09:32] [#]} (15. Bd2 $11) ({Predecessor:} 15. Bf4 Bxb2 16. Bxb7+ Kxb7 17. Rdb1 Rd1+ 18. Rxd1 Bxa1 19. Rxa1 {½-½ (19) Mamedyarov,S (2757)-Gelfand,B (2759) Sochi 2014}) 15... Bc3 $1 $15 {[%emt 0:07:14][%cal Rd8d1]} 16. Bf3 {[%emt 0:05:09]} (16. Rd5 Bf6) 16... Rxd1+ {[%emt 0:11:12]} 17. Bxd1 {[%emt 0:00:34]} Bf6 {[%emt 0:03:42]} 18. Be2 {[%emt 0:04:57]} Rd8 {[%emt 0:00:46]} 19. f3 {[%emt 0:00:45]} Bf5 {[%emt 0:04:34]} 20. Kf2 {[%emt 0:07:01]} Bc2 {[%emt 0:01:28] Black is much more active.} 21. Ke1 {[%emt 0:02:56]} h5 {[%emt 0:00:23]} 22. a3 {[%emt 0:02:10]} Ba4 {[%emt 0:03:51]} 23. Rb1 $1 {[%emt 0:00:52]} h4 {[%emt 0:01:40]} 24. b3 {[%emt 0:04:05] [#]} hxg3 $1 {[%emt 0:01:46]} 25. hxg3 {[%emt 0:00:12]} Bc6 {[%emt 0:00:25]} 26. Bb2 {[%emt 0:01:10]} Bxb2 {[%emt 0:00:57]} 27. Rxb2 $11 {[%emt 0:00:04][%mdl 4096] Endgame KRB-KRB} Rh8 {[%emt 0:00:07]} 28. Kf2 {[%emt 0:04:08]} Rh1 {[%emt 0:00:12]} 29. e4 {[%emt 0:01:47]} Ra1 {[%emt 0:05:09]} 30. a4 {[%emt 0:00:13] Prevents b5.} Kc7 {[%emt 0:00:35]} 31. Bc4 {[%emt 0:07:21]} e6 {[%emt 0:00:52]} 32. Ke3 {[%emt 0:00:23]} Kd6 {[%emt 0:01:21]} 33. Kf4 {[%emt 0:05:19]} e5+ {[%emt 0:01:11]} 34. Kg5 {[%emt 0:00:27] Strongly threatening Kf6.} Ke7 {[%emt 0:00:36]} 35. g4 {[%emt 0:09:35]} Rh1 {[%emt 0:06:50] aiming for ...Be8.} 36. f4 $2 {[%emt 0:01:12][%mdl 8192]} (36. Bb5 $1 $11 {and White stays safe.}) 36... f6+ $19 {[%emt 0:08:20]} (36... Bxe4 37. fxe5 Rg1 38. Rf2 $11) 37. Kxg6 {[%emt 0:00:04]} Bxe4+ {[%emt 0:00:27]} ({Not} 37... exf4 38. Kf5 $11) 38. Kg7 {[%emt 0:01:22]} Rg1 {[%emt 0:01:15]} 39. g5 $2 {[%emt 0:01:07]} (39. fxe5 Rxg4+ 40. Kh6) 39... exf4 {[%emt 0:00:31] Black is clearly winning.} 40. Re2 {[%emt 0:01:12]} Rxg5+ {[%emt 0:00:09]} 41. Kh6 {[%emt 0:00:13]} Re5 {[%emt 0:00:42] Weighted Error Value: White=0.29 (precise) /Black=0.08 (flawless)} 0-1